bitfinex-derivatives/quotes_BTCF0:USTF0_20250324
["timestamp","ask_amount","ask_price","bid_price","bid_amount"]
[1742836323657,0.3608,88204.0,88183.0,0.02669006]
[1742836323853,0.3608,88204.0,88200.0,0.0566869]
[1742836324055,0.1700607,88203.0,88202.0,0.1700594]
[1742836324259,0.1700581,88204.0,88203.0,0.1133725]
[1742836324560,0.1700581,88204.0,88203.0,0.1978925]
[1742836324950,0.28343228,88204.0,88203.0,0.1978925]
[1742836325254,0.1133712,88204.0,88203.0,0.1978925]
[1742836325649,0.22774538,88204.0,88203.0,0.1978925]
[1742836326159,0.22674538,88204.0,88203.0,0.1978925]
[1742836326351,0.11537418,88204.0,88203.0,0.1978925]
[1742836326658,0.05685366,88208.0,88207.0,0.1133674]
[1742836326855,0.05685366,88208.0,88207.0,0.1849274]
[1742836327749,0.1137567,88216.0,88215.0,0.1133571]
[1742836327949,0.1137567,88216.0,88215.0,0.1648771]
[1742836328348,0.1137567,88216.0,88215.0,0.2594771]
[1742836328749,0.0331,88226.0,88215.0,0.2594771]
[1742836328750,0.4738,88235.0,88226.0,0.1700093]
[1742836329054,0.1700177,88227.0,88226.0,0.1915293]
[1742836329266,0.1700177,88227.0,88226.0,0.02152]
[1742836329446,0.1700177,88227.0,88226.0,0.14606944]
[1742836329648,0.1700177,88227.0,88226.0,0.134863]
[1742836329851,0.1700177,88227.0,88226.0,0.02152]
[1742836330049,0.28336233,88227.0,88226.0,0.02152]
[1742836330252,0.28336233,88227.0,88226.0,0.03619904]
[1742836330654,0.00402011,88230.0,88226.0,0.09287024]
[1742836330951,0.1133417,88227.0,88226.0,0.134863]
[1742836331151,0.1133417,88227.0,88226.0,0.02152]
[1742836331757,0.25968633,88227.0,88226.0,0.02152]
[1742836331957,0.25968633,88227.0,88226.0,0.134863]
[1742836332160,0.1163417,88227.0,88226.0,0.134863]
[1742836332649,0.23268633,88227.0,88226.0,0.02152]
[1742836333258,0.23268633,88227.0,88226.0,0.134863]
[1742836333452,0.1193417,88227.0,88226.0,0.134863]
[1742836333961,0.23268633,88227.0,88226.0,0.02152]
[1742836334259,0.1193417,88227.0,88226.0,0.134863]
[1742836334459,0.006,88227.0,88226.0,0.134863]
[1742836334653,0.1193417,88227.0,88226.0,0.51100271]
[1742836335155,0.23268633,88227.0,88226.0,0.51100271]
[1742836335356,0.23268633,88227.0,88226.0,0.39765971]
[1742836335557,0.1193417,88227.0,88226.0,0.39765971]
[1742836335755,0.23268633,88227.0,88226.0,0.39765971]
[1742836335956,0.29468633,88227.0,88226.0,0.39765971]
[1742836336452,0.29468633,88227.0,88226.0,0.495663]
[1742836336659,0.1193417,88227.0,88226.0,0.495663]
[1742836336854,0.1193417,88227.0,88226.0,0.38232]
[1742836337056,0.1193417,88227.0,88226.0,0.495663]
[1742836337256,0.006,88227.0,88226.0,0.495663]
[1742836337561,0.1193417,88227.0,88226.0,0.495663]
[1742836338860,0.23268633,88227.0,88226.0,0.38232]
[1742836339249,0.23268633,88227.0,88226.0,0.37232]
[1742836339454,0.29508633,88227.0,88226.0,0.37232]
[1742836339850,0.23268633,88227.0,88226.0,0.485663]
[1742836340056,0.1193417,88227.0,88226.0,0.495663]
[1742836340460,0.23268633,88227.0,88226.0,0.495663]
[1742836340656,0.23268633,88227.0,88226.0,0.39864595]
[1742836341165,0.23268633,88227.0,88226.0,0.38232]
[1742836341370,0.23268633,88227.0,88226.0,0.495663]
[1742836341569,0.29388633,88227.0,88226.0,0.495663]
[1742836342456,0.1193417,88227.0,88226.0,0.495663]
[1742836342970,0.1495417,88227.0,88226.0,0.495663]
[1742836343153,0.1826417,88227.0,88226.0,0.495663]
[1742836343571,0.1826417,88227.0,88226.0,0.559063]
[1742836347271,0.1826417,88227.0,88226.0,0.198263]
[1742836349161,0.006,88227.0,88226.0,0.676503]
[1742836349364,0.3608,88267.0,88226.0,0.676503]
[1742836349365,0.0004,88264.0,88253.0,0.0566537]
[1742836349665,0.22665033,88255.0,88254.0,0.0618]
[1742836349865,0.22665033,88255.0,88254.0,0.27677265]
[1742836350065,0.1133057,88255.0,88254.0,0.27677265]
[1742836350266,0.22660923,88255.0,88254.0,0.27677265]
[1742836350773,0.22660923,88255.0,88254.0,0.2616]
[1742836351472,0.00016996,88263.0,88262.0,0.1132967]
[1742836351669,0.00016996,88263.0,88262.0,0.3448167]
[1742836352171,0.00016996,88263.0,88262.0,0.4088167]
[1742836352468,0.11346536,88263.0,88262.0,0.42387893]
[1742836352673,0.14486536,88263.0,88262.0,0.42387893]
[1742836353766,0.14486536,88263.0,88262.0,0.42357893]
[1742836353963,0.25816375,88263.0,88262.0,0.24658223]
[1742836354169,0.28996375,88263.0,88262.0,0.34987893]
[1742836354565,0.28996375,88263.0,88262.0,0.3348167]
[1742836354566,0.32236375,88263.0,88262.0,0.3348167]
[1742836355070,0.32236375,88263.0,88262.0,0.22152]
[1742836356168,0.32236375,88263.0,88262.0,0.22]
[1742836362471,0.32236375,88263.0,88248.0,0.6808]
[1742836362472,0.1133134,88249.0,88248.0,0.32]
[1742836362677,0.5307707,88249.0,88248.0,0.33152]
[1742836362873,0.5307707,88249.0,88248.0,0.20152]
[1742836363077,0.74218707,88249.0,88248.0,0.21156]
[1742836363284,0.74218707,88249.0,88248.0,0.21]
[1742836363481,0.74218707,88249.0,88248.0,0.23171836]
[1742836364275,0.7532827,88249.0,88248.0,0.23171836]
[1742836369478,0.7532827,88249.0,88248.0,0.23323836]
[1742836370582,0.7532827,88249.0,88248.0,0.23171836]
[1742836370885,0.7532827,88249.0,88248.0,0.23323836]
[1742836371382,0.62887367,88249.0,88248.0,0.23323836]
[1742836371680,0.23477367,88249.0,88248.0,0.59403836]
[1742836371985,0.23477367,88249.0,88248.0,0.70735306]
[1742836372375,0.23477367,88249.0,88248.0,0.77035306]
[1742836373083,0.23477367,88249.0,88248.0,0.78189512]
[1742836373983,0.0566554,88253.0,88252.0,0.1699546]
[1742836374184,0.0867554,88253.0,88252.0,0.5014746]
[1742836374386,0.0867554,88253.0,88252.0,0.52319296]
[1742836374689,0.0867554,88253.0,88252.0,0.35323836]
[1742836374690,0.2000637,88253.0,88252.0,0.35323836]
[1742836374988,0.34577493,88253.0,88252.0,0.35323836]
[1742836375382,0.0566554,88253.0,88252.0,0.46654796]
[1742836375984,0.0566554,88253.0,88252.0,0.53154796]
[1742836376881,0.1195554,88253.0,88252.0,0.53154796]
[1742836377679,0.1195554,88253.0,88252.0,0.41823836]
[1742836377884,0.23286663,88253.0,88252.0,0.41823836]
[1742836378186,0.23286663,88253.0,88252.0,0.53154796]
[1742836379291,0.23286663,88253.0,88252.0,0.41823836]
[1742836380389,0.23286663,88253.0,88252.0,0.38513836]
[1742836380693,0.23286663,88253.0,88252.0,0.35323836]
[1742836380694,0.59366663,88253.0,88252.0,0.35323836]
[1742836380881,0.59366663,88253.0,88252.0,0.23323836]
[1742836382982,0.1133442,88225.0,88220.0,0.3608]
[1742836383182,0.2303042,88225.0,88224.0,0.23629279]
[1742836383488,0.2303042,88225.0,88224.0,0.27629279]
[1742836383489,0.23138421,88225.0,88224.0,0.27629279]
[1742836383696,0.34469544,88225.0,88224.0,0.27629279]
[1742836384296,0.34469544,88225.0,88224.0,0.30869279]
[1742836384788,0.35608731,88225.0,88224.0,0.30869279]
[1742836385686,0.35608731,88225.0,88224.0,0.10506]
[1742836386096,0.35608731,88225.0,88224.0,0.10806]
[1742836386395,0.35608731,88225.0,88224.0,0.1069]
[1742836386691,0.4178073,88225.0,88224.0,0.1069]
[1742836387094,0.40641543,88225.0,88224.0,0.1069]
[1742836387286,0.34361543,88225.0,88224.0,0.1069]
[1742836387790,0.35475739,88225.0,88224.0,0.1069]
[1742836388185,0.34361543,88225.0,88224.0,0.1069]
[1742836388998,0.1133455,88224.0,88223.0,9e-08]
[1742836389190,0.1133648,88209.0,88208.0,0.0323]
[1742836389499,0.9518848,88209.0,88208.0,0.04]
[1742836389793,0.1133661,88208.0,88207.0,0.00045348]
[1742836390100,0.1744661,88208.0,88207.0,0.01045348]
[1742836390592,0.40467385,88208.0,88207.0,0.01045348]
[1742836390797,0.40463385,88208.0,88207.0,0.01045348]
[1742836391501,0.40723386,88208.0,88207.0,1e-08]
[1742836392489,0.41023386,88208.0,88207.0,1e-08]
[1742836393997,0.41023386,88208.0,88199.0,0.00017005]
[1742836393998,0.1133764,88200.0,88199.0,0.00017005]
[1742836394209,0.47477641,88200.0,88199.0,0.05017005]
[1742836394409,0.47477641,88200.0,88199.0,0.05129005]
[1742836394609,0.59129641,88200.0,88199.0,0.05129005]
[1742836394815,0.70466545,88200.0,88199.0,0.05129005]
[1742836395620,0.70466545,88200.0,88199.0,0.05017005]
[1742836395807,0.70466545,88200.0,88199.0,0.05125005]
[1742836396009,0.70566545,88200.0,88199.0,0.05125005]
[1742836397623,0.70666545,88200.0,88199.0,0.05017005]
[1742836397810,0.70666545,88200.0,88199.0,0.05133005]
[1742836398116,0.70650545,88200.0,88199.0,0.05017005]
[1742836401709,0.70618545,88200.0,88199.0,0.05017005]
[1742836401910,0.71744247,88200.0,88199.0,0.05017005]
[1742836402114,0.1133828,88195.0,88194.0,0.0646]
[1742836402415,0.1133867,88192.0,88191.0,0.00045356]
[1742836402720,0.4748667,88192.0,88191.0,0.12045356]
[1742836402914,0.5066667,88192.0,88191.0,0.12153356]
[1742836403115,0.5376667,88192.0,88191.0,0.12045356]
[1742836403420,0.1133969,88184.0,88183.0,0.00017005]
[1742836403721,0.59131691,88184.0,88183.0,0.16129005]
[1742836403907,0.68501691,88184.0,88183.0,0.16129005]
[1742836404221,0.79840652,88184.0,88183.0,0.16017005]
[1742836404418,0.1134072,88176.0,88169.0,0.22]
[1742836404616,0.1134227,88164.0,88163.0,0.0326]
[1742836404818,0.1134227,88164.0,88163.0,0.1326]
[1742836404819,0.23014271,88164.0,88163.0,0.1326]
[1742836405214,0.3435426,88164.0,88163.0,0.1326]
[1742836405422,0.41949324,88164.0,88163.0,0.1326]
[1742836409318,0.41949324,88164.0,88163.0,0.1026]
[1742836409527,0.2299999,88164.0,88163.0,0.1026]
[1742836409723,0.3434226,88164.0,88163.0,0.1026]
[1742836410029,0.2274226,88164.0,88163.0,0.10368]
[1742836410223,0.2274226,88164.0,88163.0,0.2171039]
[1742836410419,0.2274226,88164.0,88163.0,0.10368]
[1742836414526,0.20375196,88164.0,88163.0,0.1026]
[1742836416330,0.20375196,88164.0,88152.0,0.20363279]
[1742836416331,0.1134458,88146.0,88143.0,0.00045381]
[1742836416538,0.5910458,88146.0,88145.0,0.3829162]
[1742836416720,0.5910458,88146.0,88145.0,0.39769105]
[1742836416927,0.70447142,88146.0,88145.0,0.39769105]
[1742836417124,0.70447142,88146.0,88145.0,0.3829162]
[1742836417517,0.70447142,88146.0,88145.0,0.3869162]
[1742836417925,0.58895142,88146.0,88145.0,0.3769162]
[1742836418129,0.71608787,88146.0,88145.0,0.3620162]
[1742836419030,0.71608787,88146.0,88145.0,0.09034]
[1742836419233,0.71608787,88146.0,88145.0,0.0891]
[1742836420324,0.71608787,88146.0,88145.0,0.0871]
[1742836424131,0.60052787,88146.0,88145.0,0.0871]
[1742836424430,0.60052787,88146.0,88145.0,0.5613471]
[1742836424431,0.11470562,88146.0,88145.0,0.5613471]
[1742836424633,0.3608,88159.0,88145.0,0.5613471]
[1742836424634,0.11360645,88154.0,88153.0,0.1134368]
[1742836424836,0.11360645,88154.0,88153.0,0.3434368]
[1742836425032,0.11360645,88154.0,88153.0,0.23164]
[1742836425231,0.22704494,88154.0,88153.0,0.23164]
[1742836425433,0.23834871,88154.0,88153.0,0.23164]
[1742836426537,0.22704494,88154.0,88153.0,0.23164]
[1742836427531,0.23827138,88154.0,88153.0,0.23164]
[1742836430030,0.22704494,88154.0,88153.0,0.23164]
[1742836430229,0.07734494,88154.0,88153.0,0.23164]
[1742836430436,0.1134238,88164.0,88163.0,0.1701316]
[1742836430743,0.1134238,88164.0,88163.0,0.53244]
[1742836431036,0.22686229,88164.0,88163.0,0.53244]
[1742836431237,0.22686229,88164.0,88163.0,0.17164]
[1742836431631,0.22686229,88164.0,88163.0,0.1860804]
[1742836431942,0.25806229,88164.0,88163.0,0.1860804]
[1742836432140,0.25806229,88164.0,88163.0,0.1844404]
[1742836432438,0.25806229,88164.0,88163.0,0.1860804]
[1742836432840,0.25806229,88164.0,88163.0,0.17164]
[1742836433833,0.25906229,88164.0,88163.0,0.17164]
[1742836434037,0.26106229,88164.0,88163.0,0.17164]
[1742836435139,0.26206229,88164.0,88163.0,0.17164]
[1742836437137,0.26106229,88164.0,88163.0,0.17164]
[1742836437846,0.29126229,88164.0,88163.0,0.17164]
[1742836438944,0.29226229,88164.0,88163.0,0.17164]
[1742836440854,0.29226229,88164.0,88163.0,0.17]
[1742836441448,0.23186229,88164.0,88163.0,0.17]
[1742836441642,0.11843849,88164.0,88163.0,0.2851039]
[1742836442047,0.11843849,88164.0,88163.0,0.3479039]
[1742836442868,0.11643849,88164.0,88163.0,0.3479039]
[1742836443054,0.11443849,88164.0,88163.0,0.3479039]
[1742836443960,0.11358255,88172.0,88171.0,0.1134137]
[1742836444254,0.11358255,88172.0,88171.0,0.42222]
[1742836444458,0.22700817,88172.0,88171.0,0.42222]
[1742836444647,0.29080817,88172.0,88171.0,0.39172]
[1742836444851,0.32270817,88172.0,88171.0,0.35172]
[1742836445250,0.32470817,88172.0,88171.0,0.35172]
[1742836445755,0.29280817,88172.0,88171.0,0.35172]
[1742836446350,0.29580817,88172.0,88171.0,0.35172]
[1742836446849,0.26430817,88172.0,88171.0,0.38392]
[1742836447046,0.26430817,88172.0,88171.0,0.41582]
[1742836447457,0.29730817,88172.0,88171.0,0.41582]
[1742836448157,0.23200817,88172.0,88171.0,0.5292337]
[1742836448359,0.0570886,88200.0,88183.0,0.1133982]
[1742836448563,0.0323,88196.0,88195.0,0.1133828]
[1742836448752,0.1456815,88196.0,88195.0,0.39172]
[1742836449652,0.25906596,88196.0,88195.0,0.39172]
[1742836450067,0.26306596,88196.0,88195.0,0.39172]
[1742836450459,0.02874619,88363.0,88195.0,0.39172]
[1742836450460,0.3608,88228.0,88195.0,0.40172]
[1742836450664,0.1700426,88213.0,88212.0,0.1133606]
[1742836450858,0.1700426,88213.0,88212.0,0.6150406]
[1742836451364,0.28342706,88213.0,88212.0,0.6150406]
[1742836451757,0.28342706,88213.0,88212.0,0.50168]
[1742836452060,0.28342706,88213.0,88212.0,0.49168]
[1742836452764,0.28342706,88213.0,88212.0,0.6050409]
[1742836453665,0.28342706,88213.0,88212.0,0.49168]
[1742836454865,0.28342706,88213.0,88212.0,0.50168]
[1742836456166,0.31602706,88213.0,88212.0,0.50168]
[1742836456461,0.31602706,88213.0,88212.0,0.49168]
[1742836460862,0.43014706,88213.0,88212.0,0.49168]
[1742836462170,0.31602706,88213.0,88212.0,0.49168]
[1742836462372,0.1133777,88199.0,88198.0,0.6556748]
[1742836462569,0.1134034,88179.0,88178.0,0.1439007]
[1742836462875,0.11452341,88179.0,88178.0,0.3550607]
[1742836463068,0.22788602,88179.0,88178.0,0.24166]
[1742836463667,0.22788602,88179.0,88178.0,0.27296]
[1742836463881,0.22788602,88179.0,88178.0,0.27596]
[1742836465667,0.22788602,88179.0,88178.0,0.27896]
[1742836466276,0.22788602,88179.0,88178.0,0.27596]
[1742836466474,0.22788602,88179.0,88178.0,0.3893647]
[1742836466675,0.22988602,88179.0,88178.0,0.3863647]
[1742836468078,0.22988602,88179.0,88178.0,0.27296]
[1742836468274,0.22988602,88179.0,88178.0,0.24166]
[1742836468463,0.32378602,88179.0,88178.0,0.24166]
[1742836468663,0.32178602,88179.0,88178.0,0.24166]
[1742836468872,0.32378602,88179.0,88178.0,0.24166]
[1742836470278,0.32378602,88179.0,88178.0,0.3866647]
[1742836470475,0.32378602,88179.0,88178.0,0.27326]
[1742836471074,0.26018602,88179.0,88178.0,0.3866647]
[1742836471380,0.26218602,88179.0,88178.0,0.3866647]
[1742836472482,0.26218602,88179.0,88178.0,0.27326]
[1742836472679,0.29318602,88179.0,88178.0,0.21116]
[1742836472895,0.32468602,88179.0,88178.0,0.21116]
[1742836473080,0.32368602,88179.0,88178.0,0.21116]
[1742836473883,0.32268602,88179.0,88178.0,0.21116]
[1742836474076,0.32468602,88179.0,88178.0,0.21116]
[1742836479280,0.29368602,88179.0,88178.0,0.21116]
[1742836479479,0.22988602,88179.0,88178.0,0.3245647]
[1742836479679,0.22788602,88179.0,88178.0,0.4178647]
[1742836479883,0.22988602,88179.0,88178.0,0.4178647]
[1742836480788,0.22788602,88179.0,88178.0,0.4198647]
[1742836482086,0.22788602,88179.0,88178.0,0.43117844]
[1742836482488,0.22788602,88179.0,88178.0,0.43017844]
[1742836483091,0.22788602,88179.0,88178.0,0.43117844]
[1742836483592,0.22788602,88179.0,88178.0,0.44017844]
[1742836484388,0.22788602,88179.0,88178.0,0.44117844]
[1742836486688,0.26118602,88179.0,88178.0,0.44117844]
[1742836487295,0.26118602,88179.0,88178.0,0.43117844]
[1742836487495,0.26118602,88179.0,88178.0,0.44117844]
[1742836487696,0.0566988,88184.0,88183.0,0.1133982]
[1742836487994,0.170098,88184.0,88183.0,0.6088782]
[1742836488201,0.28498432,88184.0,88183.0,0.6088782]
[1742836489482,0.28498432,88184.0,88183.0,0.9696782]
[1742836489998,0.28498432,88184.0,88183.0,0.9706782]
[1742836490797,0.28498432,88184.0,88183.0,0.9716782]
[1742836491698,0.28498432,88184.0,88183.0,0.9736782]
[1742836491996,0.3608,88206.0,88183.0,1.27348]
[1742836492196,0.1133764,88200.0,88199.0,0.4741765]
[1742836492394,0.1133764,88200.0,88199.0,0.45632]
[1742836492589,0.1736764,88200.0,88199.0,0.45632]
[1742836492784,0.31996215,88200.0,88199.0,0.45632]
[1742836492991,0.31996215,88200.0,88199.0,0.5696977]
[1742836494100,0.17648575,88200.0,88199.0,0.5696977]
[1742836494307,0.14358575,88200.0,88199.0,0.5696977]
[1742836494600,0.25696215,88200.0,88199.0,0.45632]
[1742836494897,0.25896215,88200.0,88199.0,0.5696977]
[1742836495101,0.29026215,88200.0,88199.0,0.5696977]
[1742836496090,0.29026215,88200.0,88199.0,0.42412]
[1742836496298,0.29026215,88200.0,88199.0,0.39192]
[1742836518598,0.22876215,88200.0,88199.0,0.39192]
[1742836518804,0.22876215,88200.0,88199.0,0.40192]
[1742836519007,0.22876215,88200.0,88199.0,0.49692]
[1742836519200,0.26206215,88200.0,88199.0,0.49692]
[1742836519899,0.29306215,88200.0,88199.0,0.46442]
[1742836521606,0.29306215,88200.0,88199.0,0.43372]
[1742836522807,0.29306215,88200.0,88199.0,0.42372]
[1742836523710,0.29306215,88200.0,88199.0,0.43372]
[1742836524910,0.1133944,88186.0,88185.0,0.3]
[1742836525104,0.5873944,88186.0,88185.0,0.27]
[1742836525299,0.5873944,88186.0,88185.0,0.27132]
[1742836525507,0.66197432,88186.0,88185.0,0.27132]
[1742836525704,0.77537164,88186.0,88185.0,0.27132]
[1742836525908,0.77669164,88186.0,88185.0,0.27132]
[1742836526110,0.77537164,88186.0,88185.0,0.27]
[1742836526503,0.77537164,88186.0,88185.0,0.272]
[1742836527414,0.77537164,88186.0,88185.0,0.3049]
[1742836527608,0.77537164,88186.0,88185.0,0.3029]
[1742836527802,0.77537164,88186.0,88185.0,0.3359]
[1742836528209,0.77737164,88186.0,88185.0,0.3359]
[1742836528614,0.62269172,88186.0,88185.0,0.3359]
[1742836530411,0.65379172,88186.0,88185.0,0.3359]
[1742836530813,0.65511172,88186.0,88185.0,0.33722]
[1742836531111,0.65311172,88186.0,88185.0,0.33722]
[1742836531303,0.65511172,88186.0,88185.0,0.33722]
[1742836531702,0.65511172,88186.0,88185.0,0.27132]
[1742836531907,0.65511172,88186.0,88185.0,0.27]
[1742836532208,0.65511172,88186.0,88185.0,0.27132]
[1742836532516,0.65511172,88186.0,88185.0,0.27]
[1742836532814,0.65511172,88186.0,88185.0,0.194274]
[1742836533118,0.65511172,88186.0,88185.0,0.144274]
[1742836534810,0.65311172,88186.0,88185.0,0.144274]
[1742836535113,0.65511172,88186.0,88185.0,0.144274]
[1742836540813,0.65511172,88186.0,88175.0,0.00045364]
[1742836540814,0.1134072,88176.0,88175.0,0.00045364]
[1742836541012,0.4755672,88176.0,88175.0,0.15136]
[1742836541209,0.4755672,88176.0,88175.0,0.15]
[1742836541404,0.5400672,88176.0,88175.0,0.15]
[1742836541712,0.65346452,88176.0,88175.0,0.15]
[1742836542115,0.65546452,88176.0,88175.0,0.15]
[1742836542818,0.1134175,88168.0,88167.0,0.00017004]
[1742836543113,0.5887775,88168.0,88167.0,0.12149004]
[1742836543310,0.6520775,88168.0,88167.0,0.12149004]
[1742836543514,0.76548768,88168.0,88167.0,0.12281004]
[1742836543712,0.76548768,88168.0,88167.0,0.12149004]
[1742836544415,0.76548768,88168.0,88167.0,0.12249004]
[1742836545219,0.76648768,88168.0,88167.0,0.12249004]
[1742836546819,0.77809817,88168.0,88167.0,0.12249004]
[1742836548720,0.66485817,88168.0,88167.0,0.12249004]
[1742836554916,0.1134278,88160.0,88153.0,0.19]
[1742836555116,0.1147878,88160.0,88159.0,0.27181372]
[1742836555317,0.1462878,88160.0,88159.0,0.27181372]
[1742836555530,0.25971857,88160.0,88159.0,0.27181372]
[1742836556323,0.25971857,88160.0,88159.0,0.27281372]
[1742836556324,0.29281857,88160.0,88159.0,0.27281372]
[1742836557023,0.22821857,88160.0,88159.0,0.27281372]
[1742836557238,0.11479077,88160.0,88159.0,0.41824282]
[1742836557530,0.22821857,88160.0,88159.0,0.77904282]
[1742836557923,0.22821857,88160.0,88159.0,0.81394282]
[1742836558930,0.11479077,88160.0,88159.0,0.81394282]
[1742836559132,0.00136,88160.0,88159.0,0.82394282]
[1742836559318,0.00859403,88185.0,88183.0,0.1133982]
[1742836559631,0.0566968,88187.0,88185.0,0.1133926]
[1742836559825,0.1700862,88191.0,88190.0,0.2267763]
[1742836560025,0.1700862,88191.0,88190.0,0.5585363]
[1742836560332,0.11343077,88191.0,88190.0,0.445148]
[1742836560532,0.0566803,88213.0,88199.0,0.1133777]
[1742836560717,0.0303,88215.0,88199.0,0.70264]
[1742836561035,0.1133751,88201.0,88200.0,0.145374]
[1742836561229,0.1133751,88201.0,88200.0,0.38646]
[1742836561827,0.22675314,88201.0,88200.0,0.4998364]
[1742836562422,0.11337804,88201.0,88200.0,0.4998364]
[1742836562624,0.11337804,88201.0,88200.0,0.5303364]
[1742836562826,0.11456,88221.0,88204.0,0.0566853]
[1742836563031,0.0625,88227.0,88215.0,0.1133571]
[1742836563331,0.0566708,88228.0,88227.0,0.1133378]
[1742836563523,0.0004,88232.0,88227.0,0.1133378]
[1742836563524,0.1700074,88230.0,88229.0,0.1700055]
[1742836563721,0.11335876,88230.0,88229.0,0.48321643]
[1742836564132,0.1133375,88231.0,88230.0,0.1133365]
[1742836564434,0.1133375,88231.0,88230.0,0.5282965]
[1742836564838,0.0004,88232.0,88231.0,0.1133365]
[1742836565030,0.0004,88232.0,88231.0,0.4982965]
[1742836565337,0.1137352,88232.0,88231.0,0.4982965]
[1742836566433,0.1137352,88232.0,88231.0,0.5300965]
[1742836567230,0.0004,88232.0,88231.0,0.5300965]
[1742836567635,0.0024,88232.0,88231.0,0.5300965]
[1742836567838,0.1157352,88232.0,88231.0,0.5300965]
[1742836568134,0.1157352,88232.0,88231.0,0.5200965]
[1742836568335,0.1157352,88232.0,88231.0,0.5300965]
[1742836568833,0.0325,88242.0,88231.0,0.5300965]
[1742836568834,0.056659,88246.0,88245.0,0.113316]
[1742836569037,0.0004,88264.0,88245.0,0.113316]
[1742836569038,0.1699487,88261.0,88260.0,0.0566485]
[1742836569239,0.1699487,88261.0,88260.0,0.4884885]
[1742836569428,0.1699487,88261.0,88260.0,0.4984885]
[1742836570030,0.1699487,88261.0,88260.0,0.5300885]
[1742836571241,0.1719487,88261.0,88260.0,0.5300885]
[1742836571641,0.28524966,88261.0,88260.0,0.47344]
[1742836572132,0.28524966,88261.0,88260.0,0.5867393]
[1742836572332,0.1719487,88261.0,88260.0,0.6171393]
[1742836573246,0.1719487,88261.0,88260.0,0.6071393]
[1742836574641,0.28524966,88261.0,88260.0,0.43184]
[1742836575038,0.64604966,88261.0,88260.0,0.43184]
[1742836576341,0.67664966,88261.0,88260.0,0.43184]
[1742836577136,0.79128966,88261.0,88260.0,0.43184]
[1742836577544,0.79128966,88261.0,88260.0,0.3268329]
[1742836577846,0.1133083,88253.0,88252.0,0.00017004]
[1742836578057,0.1133083,88253.0,88252.0,0.02137004]
[1742836578058,0.47470831,88253.0,88252.0,0.02137004]
[1742836578242,0.47470831,88253.0,88238.0,0.04]
[1742836578243,0.1133263,88239.0,88238.0,0.04]
[1742836578447,0.1133301,88236.0,88235.0,0.3608]
[1742836578655,0.11457011,88236.0,88235.0,0.7753714]
[1742836578956,0.11457011,88236.0,88235.0,0.4145714]
[1742836579157,0.22789932,88236.0,88235.0,0.30124]
[1742836579356,0.22789932,88236.0,88235.0,0.4145714]
[1742836579659,0.00124001,88236.0,88235.0,0.4457714]
[1742836579957,0.11457011,88236.0,88235.0,0.4557714]
[1742836582858,0.00124001,88236.0,88235.0,0.4557714]
[1742836583055,0.1133292,88237.0,88236.0,0.1133301]
[1742836583247,0.1146092,88237.0,88236.0,0.5795301]
[1742836583553,0.11392921,88237.0,88236.0,0.5795301]
[1742836584060,0.14502921,88237.0,88236.0,0.5795301]
[1742836584257,0.03170001,88237.0,88236.0,0.5795301]
[1742836584450,0.05683004,88244.0,88243.0,0.1133211]
[1742836584451,0.11348984,88244.0,88243.0,0.1133211]
[1742836584645,0.11348984,88244.0,88243.0,0.8353211]
[1742836584851,0.00017004,88244.0,88243.0,0.8353211]
[1742836585056,0.11348984,88244.0,88243.0,0.9007211]
[1742836585554,0.00017004,88244.0,88243.0,0.91207567]
[1742836585859,0.11348984,88244.0,88243.0,0.91207567]
[1742836586159,0.00017004,88244.0,88243.0,0.91207567]
[1742836586349,0.0311,88249.0,88246.0,0.056658]
[1742836586550,0.0324,88251.0,88250.0,0.1133121]
[1742836586551,0.1457108,88251.0,88250.0,0.1133121]
[1742836586752,0.1469908,88251.0,88250.0,0.4145121]
[1742836587062,0.1772908,88251.0,88250.0,0.3012]
[1742836588355,0.2916908,88251.0,88250.0,0.2014]
[1742836588656,0.2916908,88251.0,88250.0,0.0902]
[1742836589264,0.16698173,88251.0,88250.0,0.0902]
[1742836589760,0.1133288,88237.0,88236.0,0.31]
[1742836589949,0.1133301,88236.0,88231.0,0.26933984]
[1742836590155,0.1133301,88236.0,88235.0,0.25355981]
[1742836591160,0.1133301,88236.0,88235.0,0.20725981]
[1742836591355,0.12451829,88236.0,88235.0,0.20725981]
[1742836591665,0.12451829,88236.0,88228.0,0.26933984]
[1742836591666,0.1133391,88229.0,88228.0,0.26933984]
[1742836591966,0.58969911,88229.0,88228.0,0.28041984]
[1742836592170,0.47521911,88229.0,88228.0,0.34231984]
[1742836592466,0.59001911,88229.0,88228.0,0.35231984]
[1742836593767,0.59001911,88229.0,88228.0,0.08298]
[1742836594070,0.59001911,88229.0,88228.0,0.0819]
[1742836595663,0.59001911,88229.0,88228.0,0.0517]
[1742836595863,0.59001911,88229.0,88228.0,0.083]
[1742836598072,0.70336117,88229.0,88228.0,0.083]
[1742836599961,0.70336117,88229.0,88228.0,0.1156]
[1742836600663,0.22776117,88229.0,88228.0,0.1156]
[1742836600966,0.22776117,88229.0,88228.0,0.2300204]
[1742836600967,0.11442207,88229.0,88228.0,0.2300204]
[1742836601157,0.1133345,88233.0,88232.0,0.0566675]
[1742836601362,0.1147745,88233.0,88232.0,0.2714016]
[1742836601562,0.1147745,88233.0,88232.0,0.1014]
[1742836601763,0.22811656,88233.0,88232.0,0.1014]
[1742836603068,0.22811656,88233.0,88232.0,0.2147352]
[1742836603765,0.22811656,88233.0,88232.0,0.1014]
[1742836605669,0.22811656,88233.0,88232.0,0.2147352]
[1742836606568,0.22811656,88233.0,88232.0,0.2784352]
[1742836608070,0.11478206,88233.0,88232.0,0.2784352]
[1742836608276,0.1133123,88251.0,88248.0,0.0566572]
[1742836608476,0.11331,88253.0,88252.0,0.1133078]
[1742836608776,0.1133083,88253.0,88252.0,0.29188]
[1742836608965,0.22662338,88253.0,88252.0,0.4051896]
[1742836610372,0.0566466,88265.0,88260.0,0.1132993]
[1742836610576,0.11346804,88261.0,88260.0,0.3551393]
[1742836611083,0.226769,88261.0,88260.0,0.3551393]
[1742836611374,0.113471,88261.0,88260.0,0.3551393]
[1742836611775,0.226769,88261.0,88260.0,0.3551393]
[1742836613471,0.226769,88261.0,88260.0,0.4176393]
[1742836615270,0.257969,88261.0,88260.0,0.4176393]
[1742836615778,0.257969,88261.0,88260.0,0.24184]
[1742836615975,0.2694207,88261.0,88260.0,0.24184]
[1742836616973,0.257969,88261.0,88260.0,0.24184]
[1742836617174,0.372889,88261.0,88260.0,0.24184]
[1742836617976,0.405789,88261.0,88260.0,0.24184]
[1742836620378,0.766589,88261.0,88260.0,0.24184]
[1742836623895,0.405789,88261.0,88260.0,0.24184]
[1742836624274,0.766589,88261.0,88260.0,0.24184]
[1742836624587,0.113471,88261.0,88260.0,0.7159393]